Workbook

Sheet Sayfa1
B2: Buradaki tüm hesaplamaların sizin sorumluluğunuz da olduğunu unutmayınız. Siz değerli meslektaşlarımıza yardımcı olabilmek amacıyla hazırlanmış olup, hesapların doğruluğundan şüphe etmeniz halinde yada yanlış sonuç vermesi durumunda; lütfen medula çıktısına göre mali müşavirinizden destek alınız.(Fatura altı bedelin medula icmaliyle aynı olması gerekir.)
B5: Sarı renkli hücreleri icmal bilgilerine göre doldurunuz
B6: Tutar | C6: 76038.33
B7: İskonto Tutar | C7: 1671.55
B8: %10-20 Katılım Payı | C8: 11612.42 | E8: Meduladan elde edilen KDV siz tutarlar
B9: KDV %8 İlaç | C9: 4639.93 | E9: %8 Kdv siz ilaç tutarı | F9: =C11-C9 -> 57999.17
B10: KDV %18 İlaç | C10: 17.58 | E10: %18 Kdv siz ilaç tutarı | F10: =C12-C10 -> 97.68
B11: Ödenecek Tutar KDV % 8 dahil | C11: 62639.1
B12: Ödenecek Tutar KDV % 18 Dahil | C12: 115.26
B13: Toplam Reçete Adet | C13: 1443 | E13: KDV Hariç EHB | F13: =C14-F14 -> 1284.90678
B14: Eczane Hizmet Bedeli | C14: 1516.19 | E14: EHB %18 KDV | F14: =C14*18/118 -> 231.2832203
B15: Toplam Ödenecek | C15: 63793.68 | E15: Toplam EHB | F15: =F13+F14 -> 1516.19
B17: Aşağıdaki bilgileri de girerek e-arşiv fatura "Not" kısmına kopyala yapıştır yapabilirsiniz.
B18: Doküm Numarası | C18: 237*****
B19: Reçete Dönemi | C19: Ocak 2020
B20: Reçete Grubu | C20: A
B21: IBAN No | C21: TR******************* | E21: (İl göç idaresi istemektedir)
B22: Eczane Sicil No | C22: 1842*******
B23: Yazıyla | C23: =yaziyacevir(C15) -> ALTMIŞÜÇBİNYEDİYÜZDOKSANÜÇ TL.ALTMIŞSEKİZ KR.
B24: AÇIKLAMA
B25: Burada kullanılan değerler; medulanın vermiş olduğu "Ödenecek tutar Kdv %8 dahil" ve "Ödenecek Tutar Kdv %18 dahil" tutarlarından, medulanın vermiş olduğu KDV tutarlarının çıkarılması ile elde edilmiştir.
B27: Mal/Hizmet * | C27: Miktar | D27: Birim | E27: Birim Fiyat | F27: KDV Oranı
B28: ="Reçete Bedeli ("&C13&" Adet)" -> Reçete Bedeli (1443 Adet) | C28: 1 | D28: Ay | E28: =F9 -> 57999.17 | F28: 8 KDV (Seçilecek)
B29: Reçete Bedeli (18 KDV li kısım) | C29: 1 | D29: Ay | E29: =F10 -> 97.68 | F29: 18 KDV (Seçilecek)
B30: Eczane Hizmet Bedeli | C30: 1 | D30: Ay | E30: =F13 -> 1284.90678 | F30: 18 KDV (Seçilecek)
B32: AÇIKLAMA
B33: ="Döküm No:"&C18&"---- Yalnız:"&C23&"---- Eczane Sicil No:"&C22&" ----Reçete Dönemi :"&C19&" ----Reçete Grubu:"&C20&"---- IBAN No:"&C21 -> Döküm No:237*****---- Yalnız:ALTMIŞÜÇBİNYEDİYÜZDOKSANÜÇ TL.ALTMIŞSEKİZ KR.---- Eczane Sicil No:1842******* ----Reçete Dönemi :Ocak 2020 ----Reçete Grubu:A---- IBAN No:TR*******************

Sheet Sayfa2
B3: İlaç | D3: ÷1,08 x 100 ile Kdv Hesabı | E3: =C5*100/2.2 -> 0 | F3: İskonto tutarına göre olması gereken tutar
B4: Tutar | C4: 44043.87 | E4: =C4 -> 44043.87
B5: isk | C5: 0 | E5: =(C4*2.2)/100 -> 968.96514 | F5: Tutara göre olması gereken iskonto
B6: Katılım payı | C6: 7102.56 | E6: =C6 -> 7102.56 | F6: Hizmet Bedeli
B7: %8 li ilaç bedeli | C7: 36941.31 | D7: =C7/1.08 -> 34204.91667 | E7: =C7-D7 -> 2736.393333
B8: %18 li ilaç bedeli | C8: 0 | D8: =C8/1.18 -> 0 | E8: =C8-D8 -> 0
B9: Net Toplam(KDV li) | C9: =C4-C5-C6 -> 36941.31 | D9: =C9/1.08 -> 34204.91667 | E9: =E4-E5-E6 -> 35972.34486 | F9: 2376.2 | G9: Kdv dahil toplam
B10: KDV %8 | C10: =C7*8/108 -> 2736.393333 | D10: =C9-D9 -> 2736.393333 | E10: =E9*8/108 -> 2664.618138 | F10: =F9*18/118 -> 362.4711864 | G10: KDV 18
B11: KDV % 18 | C11: =C8*18/118 -> 0
B13: KDV siz Matrah | C13: =C9-C10 -> 34204.91667 | E13: =E9-E10 -> 33307.72672 | F13: =F9-F10 -> 2013.728814 | G13: KDV siz Hizmet bedeli
B18: KONTROL tutar | C18: =C13+C10 -> 36941.31 | D18: (Ödenecek tutar) | F18: =F13+F10 -> 2376.2 | G18: KDV
B21: İLAÇ+EHB | C21: =C18+F18 -> 39317.51
